[Event "Tournoi norme de MI"]
[Site "PARIS"]
[Date "????.??.??"]
[Round "4.2"]
[White "Laurent, Julien G."]
[Black "Mouhamad, Joachim"]
[Result "1/2-1/2"]
[TimeControl "90mn+30s/c"]
[WhiteElo "2199"]
[BlackElo "2301"]

1. Nf3 {[%clk 01:30:33]} {[%emt 00:00:23]} d5 {[%clk 01:30:55]} {[%emt
00:00:09]} 2. c4 {[%clk 01:30:45]} {[%emt 00:00:18]} d4 {[%clk 01:31:16]}
{[%emt 00:00:08]} 3. e3 {[%clk 01:31:10]} {[%emt 00:00:04]} Nc6 {[%clk
01:30:33]} {[%emt 00:01:13]} 4. exd4 {[%clk 01:31:34]} {[%emt 00:00:07]} Nxd4
{[%clk 01:30:48]} {[%emt 00:00:15]} 5. Nxd4 {[%clk 01:32:00]} {[%emt 00:00:04]}
Qxd4 {[%clk 01:31:09]} {[%emt 00:00:09]} 6. Nc3 {[%clk 01:32:26]} {[%emt
00:00:04]} Nf6 {[%clk 01:28:10]} {[%emt 00:03:29]} 7. d3 {[%clk 01:32:18]}
{[%emt 00:00:38]} c6 {[%clk 01:21:43]} {[%emt 00:06:58]} 8. Be3 {[%clk
01:31:53]} {[%emt 00:00:55]} Qg4 {[%clk 01:18:13]} {[%emt 00:04:00]} 9. h3
{[%clk 01:22:04]} {[%emt 00:10:19]} Qxd1+ {[%clk 01:14:55]} {[%emt 00:03:48]}
10. Rxd1 {[%clk 01:19:50]} {[%emt 00:02:44]} e5 {[%clk 01:14:51]} {[%emt
00:00:34]} 11. Be2 {[%clk 01:18:48]} {[%emt 00:01:33]} Be7 {[%clk 01:13:02]}
{[%emt 00:02:20]} 12. O-O {[%clk 01:18:27]} {[%emt 00:00:50]} O-O {[%clk
01:13:13]} {[%emt 00:00:20]} 13. f4 {[%clk 01:17:49]} {[%emt 00:01:08]} exf4
{[%clk 01:13:09]} {[%emt 00:00:34]} 14. Bxf4 {[%clk 01:18:14]} {[%emt
00:00:05]} Be6 {[%clk 01:12:13]} {[%emt 00:01:26]} 15. Rd2 {[%clk 01:09:44]}
{[%emt 00:08:59]} Rfd8 {[%clk 01:10:02]} {[%emt 00:02:41]} 16. Rfd1 {[%clk
01:10:10]} {[%emt 00:00:03]} Rd7 {[%clk 01:08:28]} {[%emt 00:02:05]} 17. Be3
{[%clk 01:10:07]} {[%emt 00:00:33]} h6 {[%clk 00:59:03]} {[%emt 00:09:55]} 18.
a3 {[%clk 01:04:02]} {[%emt 00:06:34]} Kh7 {[%clk 00:43:31]} {[%emt 00:16:02]}
19. d4 {[%emt 00:10:23]} Rad8 {[%clk 00:42:36]} 20. d5 {[%clk 00:55:40]} {[%emt
00:00:25]} cxd5 {[%clk 00:41:45]} {[%emt 00:01:21]} 21. cxd5 {[%clk 00:56:03]}
{[%emt 00:00:07]} Nxd5 {[%clk 00:41:23]} {[%emt 00:00:53]} 22. Nxd5 {[%clk
00:56:28]} {[%emt 00:00:05]} Rxd5 {[%clk 00:40:01]} {[%emt 00:01:51]} 23. Rxd5
{[%clk 00:56:52]} {[%emt 00:00:05]} Rxd5 {[%clk 00:37:36]} {[%emt 00:02:56]} 24.
Rxd5 {[%clk 00:57:08]} {[%emt 00:00:15]} Bxd5 {[%clk 00:38:00]} {[%emt
00:00:06]} 25. Bxa7 {[%clk 00:57:33]} {[%emt 00:00:04]} f5 {[%clk 00:32:08]}
{[%emt 00:06:22]} 26. Bd3 {[%clk 00:53:18]} {[%emt 00:04:46]} g6 {[%clk
00:32:23]} {[%emt 00:00:15]} 27. b4 {[%clk 00:53:07]} {[%emt 00:00:41]} Kg7
{[%clk 00:32:24]} {[%emt 00:00:29]} 28. Bd4+ {[%clk 00:53:06]} {[%emt
00:00:30]} Kf7 {[%clk 00:32:30]} {[%emt 00:00:25]} 29. Bc3 {[%clk 00:53:17]}
{[%emt 00:00:18]} Ke6 {[%clk 00:29:36]} {[%emt 00:03:24]} 30. a4 {[%clk
00:53:27]} {[%emt 00:00:20]} g5 {[%clk 00:27:12]} {[%emt 00:02:55]} 31. a5
{[%clk 00:53:35]} {[%emt 00:00:22]} g4 {[%clk 00:26:57]} {[%emt 00:00:45]} 32.
hxg4 {[%clk 00:53:08]} {[%emt 00:00:56]} fxg4 {[%clk 00:27:20]} {[%emt
00:00:07]} 33. Kf2 {[%clk 00:53:30]} {[%emt 00:00:07]} h5 {[%clk 00:27:34]}
{[%emt 00:00:16]} 34. Be2 {[%clk 00:52:47]} {[%emt 00:01:13]} Kf5 {[%clk
00:27:21]} {[%emt 00:00:43]} 35. Bd3+ {[%clk 00:52:44]} {[%emt 00:00:33]} Ke6
{[%clk 00:27:21]} {[%emt 00:00:30]} 36. Be2 {[%clk 00:53:09]} {[%emt 00:00:05]}
1/2-1/2

[Event "Tournoi norme de MI"]
[Site "PARIS"]
[Date "????.??.??"]
[Round "4.5"]
[White "Navrotescu, Andreea"]
[Black "Bonte, Andrei-Mihai"]
[Result "1-0"]
[TimeControl "90mn+30s/c"]
[WhiteElo "2228"]
[BlackElo "2340"]

1. d4 {[%clk 01:29:19]} {[%emt 00:01:39]} Nf6 {[%clk 01:30:39]} {[%emt
00:00:22]} 2. c4 {[%clk 01:29:45]} {[%emt 00:00:05]} e6 {[%clk 01:30:39]}
{[%emt 00:00:29]} 3. Nc3 {[%clk 01:30:09]} {[%emt 00:00:06]} Bb4 {[%clk
01:30:57]} {[%emt 00:00:11]} 4. e3 {[%clk 01:30:33]} {[%emt 00:00:07]} O-O
{[%clk 01:29:07]} {[%emt 00:02:20]} 5. Bd2 {[%clk 01:30:43]} {[%emt 00:00:20]}
d5 {[%clk 01:24:37]} {[%emt 00:05:00]} 6. Nf3 {[%clk 01:30:47]} {[%emt
00:00:25]} Nbd7 {[%clk 01:22:58]} {[%emt 00:02:09]} 7. Qb3 {[%clk 01:23:49]}
{[%emt 00:07:28]} Bxc3 {[%clk 01:03:34]} {[%emt 00:19:54]} 8. Bxc3 {[%clk
01:24:01]} {[%emt 00:00:19]} b6 {[%clk 01:02:38]} {[%emt 00:01:26]} 9. cxd5
{[%clk 01:22:16]} {[%emt 00:02:14]} Nxd5 {[%clk 01:02:26]} {[%emt 00:00:42]} 10.
Bd2 {[%clk 01:18:27]} {[%emt 00:04:19]} c5 {[%clk 00:56:37]} {[%emt 00:06:20]}
11. Bb5 {[%clk 01:09:12]} {[%emt 00:09:44]} a6 {[%clk 00:50:59]} {[%emt
00:06:08]} 12. Bxd7 {[%clk 01:06:12]} {[%emt 00:03:30]} Bxd7 {[%clk 00:51:11]}
{[%emt 00:00:18]} 13. dxc5 {[%clk 01:06:25]} {[%emt 00:00:17]} bxc5 {[%clk
00:51:26]} {[%emt 00:00:16]} 14. O-O {[%clk 01:06:03]} {[%emt 00:00:52]} Qf6
{[%clk 00:45:58]} {[%emt 00:05:58]} 15. Qc2 {[%clk 01:01:06]} {[%emt 00:05:26]}
Rfc8 {[%clk 00:43:15]} {[%emt 00:03:14]} 16. e4 {[%clk 00:52:42]} {[%emt
00:08:55]} Nb4 {[%clk 00:39:49]} {[%emt 00:03:56]} 17. Qc3 {[%clk 00:53:00]}
{[%emt 00:00:11]} Bb5 {[%clk 00:38:25]} {[%emt 00:01:54]} 18. Qxf6 {[%clk
00:50:04]} {[%emt 00:03:26]} gxf6 {[%clk 00:38:50]} {[%emt 00:00:05]} 19. Rfc1
{[%clk 00:45:00]} {[%emt 00:05:33]} Bd3 {[%clk 00:29:03]} {[%emt 00:10:17]} 20.
e5 {[%clk 00:36:13]} {[%emt 00:09:18]} Nc2 {[%clk 00:24:30]} {[%emt 00:05:03]}
21. exf6 {[%clk 00:36:32]} {[%emt 00:00:11]} Nxa1 {[%clk 00:24:50]} {[%emt
00:00:09]} 22. Rxa1 {[%clk 00:37:00]} {[%emt 00:00:02]} Rab8 {[%clk 00:16:01]}
{[%emt 00:09:20]} 23. Bc3 {[%clk 00:37:12]} {[%emt 00:00:18]} Be4 {[%clk
00:12:20]} {[%emt 00:04:11]} 24. Ne5 {[%clk 00:36:17]} {[%emt 00:01:25]} Rd8
{[%clk 00:12:43]} {[%emt 00:00:08]} 25. f3 {[%clk 00:36:41]} {[%emt 00:00:06]}
Ba8 {[%clk 00:09:21]} {[%emt 00:03:52]} 26. a4 {[%clk 00:32:33]} {[%emt
00:04:38]} Rd5 {[%clk 00:08:42]} {[%emt 00:01:08]} 27. a5 {[%clk 00:32:52]}
{[%emt 00:00:11]} Rb3 {[%clk 00:08:51]} {[%emt 00:00:21]} 28. Re1 {[%clk
00:28:14]} {[%emt 00:05:08]} h5 {[%clk 00:09:16]} {[%emt 00:00:04]} 29. Kf2
{[%clk 00:26:26]} {[%emt 00:02:18]} Rd8 {[%clk 00:08:26]} {[%emt 00:01:20]} 30.
Kg3 {[%clk 00:23:52]} {[%emt 00:03:05]} Bd5 {[%clk 00:08:51]} {[%emt 00:00:05]}
31. Kh4 {[%clk 00:23:57]} {[%emt 00:00:25]} Rb7 {[%clk 00:08:09]} {[%emt
00:01:12]} 32. Kxh5 {[%clk 00:24:06]} {[%emt 00:00:20]} Kh7 {[%clk 00:08:16]}
{[%emt 00:00:23]} 33. g4 {[%clk 00:23:27]} {[%emt 00:01:09]} Bb3 {[%clk
00:07:32]} {[%emt 00:01:15]} 34. Re2 {[%clk 00:20:26]} {[%emt 00:03:31]} Ba2
{[%clk 00:04:13]} {[%emt 00:03:48]} 35. Re1 {[%clk 00:19:02]} {[%emt 00:01:55]}
Bb3 {[%clk 00:04:35]} {[%emt 00:00:08]} 36. g5 {[%clk 00:19:15]} {[%emt
00:00:17]} Bc2 {[%clk 00:04:35]} {[%emt 00:00:30]} 37. Kg4 {[%clk 00:18:41]}
{[%emt 00:01:04]} Bf5+ {[%clk 00:03:24]} {[%emt 00:01:41]} 38. Kg3 {[%clk
00:18:28]} {[%emt 00:00:43]} Bg6 {[%clk 00:01:00]} {[%emt 00:02:54]} 39. Kg4
{[%clk 00:17:17]} {[%emt 00:01:41]} Bf5+ {[%clk 00:01:08]} {[%emt 00:00:22]} 40.
Kf4 {[%clk 00:17:46]} {[%emt 00:00:01]} Bg6 {[%clk 00:01:09]} {[%emt 00:00:28]}
41. Rg1 {[%clk 00:17:08]} {[%emt 00:01:08]} Rd5 {[%clk 00:01:21]} {[%emt
00:00:19]} 42. Rg4 {[%clk 00:16:55]} {[%emt 00:00:43]} Bf5 {[%clk 00:00:44]}
{[%emt 00:01:07]} 43. Rh4+ {[%clk 00:13:45]} {[%emt 00:03:40]} Kg8 {[%clk
00:01:07]} {[%emt 00:00:06]} 44. Rh6 {[%clk 00:13:48]} {[%emt 00:00:27]} Rxe5
{[%clk 00:01:20]} {[%emt 00:00:17]} 45. Kxe5 {[%clk 00:13:06]} {[%emt
00:01:12]} Rd7 {[%clk 00:01:43]} {[%emt 00:00:08]} 46. h4 {[%clk 00:12:16]}
{[%emt 00:01:20]} Rd5+ {[%clk 00:01:13]} {[%emt 00:00:59]} 47. Kf4 {[%clk
00:12:44]} {[%emt 00:00:01]} Bc2 {[%clk 00:01:01]} {[%emt 00:00:43]} 48. Be5
{[%clk 00:12:00]} {[%emt 00:01:14]} Rd1 {[%clk 00:00:48]} {[%emt 00:00:43]} 49.
h5 {[%clk 00:11:21]} {[%emt 00:01:10]} Rh1 {[%clk 00:01:13]} {[%emt 00:00:05]}
50. g6 {[%clk 00:10:59]} {[%emt 00:00:52]} Bxg6 {[%clk 00:01:27]} {[%emt
00:00:15]} 51. Rxg6+ {[%clk 00:11:23]} {[%emt 00:00:06]} fxg6 {[%clk 00:00:52]}
{[%emt 00:01:05]} 52. hxg6 {[%clk 00:11:51]} {[%emt 00:00:02]} Rd1 {[%clk
00:00:45]} {[%emt 00:00:37]} 53. f7+ {[%clk 00:10:16]} {[%emt 00:02:05]} Kf8
{[%clk 00:01:14]} 54. Kg5 {[%clk 00:10:40]} {[%emt 00:00:06]} Ke7 {[%clk
00:01:34]} {[%emt 00:00:10]} 55. Bg7 {[%clk 00:10:27]} {[%emt 00:00:42]} Rg1+
{[%clk 00:01:18]} {[%emt 00:00:46]} 56. Kf4 {[%clk 00:10:28]} {[%emt 00:00:29]}
1-0

[Event "Tournoi norme de MI"]
[Site "PARIS"]
[Date "????.??.??"]
[Round "4.3"]
[White "Duboue, Peio"]
[Black "Vlachos, Anatole"]
[Result "1/2-1/2"]
[TimeControl "90mn+30s/c"]
[WhiteElo "2462"]
[BlackElo "2430"]

1. e4 {[%clk 01:27:37]} {[%emt 00:03:22]} e5 {[%clk 01:30:47]} {[%emt
00:00:12]} 2. Nf3 {[%clk 01:28:03]} {[%emt 00:00:05]} Nc6 {[%clk 01:31:13]}
{[%emt 00:00:04]} 3. Nc3 {[%clk 01:28:30]} {[%emt 00:00:03]} Nf6 {[%clk
01:31:37]} {[%emt 00:00:06]} 4. d4 {[%clk 01:28:53]} {[%emt 00:00:07]} Bb4
{[%clk 01:31:52]} {[%emt 00:00:15]} 5. Nxe5 {[%clk 01:29:14]} {[%emt 00:00:09]}
Bxc3+ {[%clk 01:32:14]} {[%emt 00:00:08]} 6. bxc3 {[%clk 01:29:39]} {[%emt
00:00:05]} Qe7 {[%clk 01:32:40]} {[%emt 00:00:04]} 7. f3 {[%clk 01:29:00]}
{[%emt 00:01:09]} Nxe5 {[%clk 01:33:03]} {[%emt 00:00:07]} 8. dxe5 {[%clk
01:29:27]} {[%emt 00:00:03]} Qxe5 {[%clk 01:33:25]} {[%emt 00:00:08]} 9. Qd4
{[%clk 01:29:54]} {[%emt 00:00:03]} d6 {[%clk 01:32:36]} {[%emt 00:01:20]} 10.
Bd3 {[%clk 01:25:38]} {[%emt 00:04:46]} O-O {[%clk 01:31:29]} {[%emt 00:01:36]}
11. O-O {[%clk 01:25:50]} {[%emt 00:00:19]} Re8 {[%clk 01:30:05]} {[%emt
00:01:55]} 12. Be3 {[%clk 01:24:39]} {[%emt 00:01:40]} b6 {[%clk 01:28:09]}
{[%emt 00:02:26]} 13. Bf2 {[%clk 01:19:36]} {[%emt 00:05:33]} Bb7 {[%clk
01:26:55]} {[%emt 00:01:45]} 14. a4 {[%clk 01:09:41]} {[%emt 00:10:25]} a5
{[%clk 01:09:18]} {[%emt 00:18:07]} 15. Bb5 {[%clk 01:06:34]} {[%emt 00:03:34]}
Re7 {[%clk 00:55:51]} {[%emt 00:13:59]} 16. Bh4 {[%clk 00:56:11]} {[%emt
00:10:54]} Qf4 {[%clk 00:50:10]} {[%emt 00:06:11]} 17. Qf2 {[%clk 00:50:47]}
{[%emt 00:05:54]} Qe5 {[%clk 00:46:39]} {[%emt 00:04:02]} 18. Qd4 {[%clk
00:47:17]} {[%emt 00:03:59]} Qf4 {[%clk 00:47:02]} {[%emt 00:00:07]} 19. Qf2
{[%clk 00:47:23]} {[%emt 00:00:24]} Qe5 {[%clk 00:47:27]} {[%emt 00:00:05]}
1/2-1/2

[Event "Tournoi norme de MI"]
[Site "PARIS"]
[Date "????.??.??"]
[Round "4.4"]
[White "Bassini, Emile"]
[Black "Willems, Niels"]
[Result "1/2-1/2"]
[TimeControl "90mn+30s/c"]
[WhiteElo "2382"]
[BlackElo "2337"]

1. e4 {[%clk 01:30:57]} {[%emt 00:00:02]} c6 {[%clk 01:30:38]} {[%emt
00:00:22]} 2. d4 {[%clk 01:31:16]} {[%emt 00:00:10]} d5 {[%clk 01:31:03]}
{[%emt 00:00:05]} 3. e5 {[%clk 01:31:40]} {[%emt 00:00:06]} Bf5 {[%clk
01:31:28]} {[%emt 00:00:06]} 4. Nf3 {[%clk 01:31:57]} {[%emt 00:00:13]} e6
{[%clk 01:31:52]} {[%emt 00:00:06]} 5. Be2 {[%clk 01:32:22]} {[%emt 00:00:04]}
c5 {[%clk 01:29:53]} {[%emt 00:02:30]} 6. Be3 {[%clk 01:31:52]} {[%emt
00:01:00]} Qb6 {[%clk 01:28:11]} {[%emt 00:02:13]} 7. Nc3 {[%clk 01:31:19]}
{[%emt 00:01:03]} Nc6 {[%clk 01:27:37]} {[%emt 00:01:04]} 8. O-O {[%clk
01:31:14]} {[%emt 00:00:35]} Qxb2 {[%clk 01:26:45]} {[%emt 00:01:23]} 9. Qe1
{[%clk 01:31:37]} {[%emt 00:00:06]} cxd4 {[%clk 01:26:04]} {[%emt 00:01:11]} 10.
Bxd4 {[%clk 01:30:43]} {[%emt 00:01:24]} Nxd4 {[%clk 01:25:28]} {[%emt
00:01:06]} 11. Nxd4 {[%clk 01:30:52]} {[%emt 00:00:21]} Bb4 {[%clk 01:25:39]}
{[%emt 00:00:19]} 12. Ndb5 {[%clk 01:31:17]} {[%emt 00:00:06]} Ba5 {[%clk
01:25:37]} {[%emt 00:00:32]} 13. Rb1 {[%clk 01:31:31]} {[%emt 00:00:16]} Qxc2
{[%clk 01:25:40]} {[%emt 00:00:27]} 14. Rc1 {[%clk 01:31:49]} {[%emt 00:00:12]}
Qb2 {[%clk 01:24:47]} {[%emt 00:01:23]} 15. Nd6+ {[%clk 01:32:15]} {[%emt
00:00:04]} Kf8 {[%clk 01:24:42]} {[%emt 00:00:35]} 16. Nxf5 {[%clk 01:32:41]}
{[%emt 00:00:04]} exf5 {[%clk 01:24:54]} {[%emt 00:00:17]} 17. Na4 {[%clk
01:33:09]} {[%emt 00:00:03]} Bb4 {[%emt 00:02:08]} 18. Qd2 Bxd2 {[%clk
01:23:16]} 19. Nxb2 {[%clk 01:33:26]} {[%emt 00:00:13]} Ba5 {[%clk 01:21:40]}
{[%emt 00:02:05]} 20. Rc5 {[%clk 01:33:51]} {[%emt 00:00:06]} Bb6 {[%clk
01:00:29]} {[%emt 00:21:41]} 21. Rxd5 {[%clk 01:34:07]} {[%emt 00:00:13]} Rd8
{[%clk 00:59:55]} {[%emt 00:01:05]} 22. Rfd1 {[%clk 01:31:45]} {[%emt
00:02:51]} Ke7 {[%clk 00:55:13]} {[%emt 00:05:12]} 23. Bb5 {[%clk 01:23:30]}
{[%emt 00:08:46]} Nh6 {[%clk 00:51:28]} {[%emt 00:04:15]} 24. Rd7+ {[%clk
01:23:43]} {[%emt 00:00:16]} Rxd7 {[%clk 00:51:47]} {[%emt 00:00:11]} 25. Rxd7+
{[%clk 01:24:09]} {[%emt 00:00:04]} Ke6 {[%clk 00:51:55]} {[%emt 00:00:22]} 26.
Rd6+ {[%clk 01:19:42]} {[%emt 00:04:57]} Ke7 {[%clk 00:44:07]} {[%emt
00:08:18]} 27. Rd7+ {[%clk 01:20:11]} {[%emt 00:00:01]} Ke6 {[%clk 00:44:26]}
{[%emt 00:00:11]} 28. Rd6+ {[%clk 00:44:56]} {[%emt 00:35:45]} Ke7 {[%clk
00:44:54]} {[%emt 00:00:02]} 29. Rd7+ {[%clk 00:45:18]} {[%emt 00:00:06]}
1/2-1/2

[Event "Tournoi norme de MI"]
[Site "PARIS"]
[Date "????.??.??"]
[Round "4.1"]
[White "Lazo, Andrei"]
[Black "Roshka, Yevgeniy"]
[Result "0-1"]
[TimeControl "90mn+30s/c"]
[WhiteElo "2212"]
[BlackElo "2501"]

1. d4 {[%clk 01:30:58]} {[%emt 00:00:01]} Nf6 {[%clk 01:30:56]} {[%emt
00:00:04]} 2. c4 {[%clk 01:31:23]} {[%emt 00:00:05]} c5 {[%clk 01:31:21]}
{[%emt 00:00:05]} 3. d5 {[%clk 01:31:48]} {[%emt 00:00:04]} e6 {[%clk
01:31:48]} {[%emt 00:00:04]} 4. Nc3 {[%clk 01:32:13]} {[%emt 00:00:04]} exd5
{[%clk 01:32:15]} {[%emt 00:00:03]} 5. cxd5 {[%clk 01:32:38]} {[%emt 00:00:05]}
d6 {[%clk 01:32:42]} {[%emt 00:00:04]} 6. e4 {[%clk 01:32:59]} {[%emt
00:00:08]} g6 {[%clk 01:33:08]} {[%emt 00:00:04]} 7. f4 {[%clk 01:33:24]}
{[%emt 00:00:05]} Bg7 {[%clk 01:33:35]} {[%emt 00:00:04]} 8. Bb5+ {[%clk
01:33:47]} {[%emt 00:00:06]} Nfd7 {[%clk 01:34:02]} {[%emt 00:00:03]} 9. Be2
{[%clk 01:34:10]} {[%emt 00:00:07]} O-O {[%clk 01:33:49]} {[%emt 00:00:43]} 10.
Nf3 {[%clk 01:34:35]} {[%emt 00:00:04]} Re8 {[%clk 01:31:19]} {[%emt 00:03:01]}
11. O-O {[%clk 01:34:51]} {[%emt 00:00:13]} Na6 {[%clk 01:27:29]} {[%emt
00:04:20]} 12. Bd2 {[%clk 01:32:52]} {[%emt 00:02:29]} Nf6 {[%clk 01:22:12]}
{[%emt 00:05:48]} 13. Bb5 {[%clk 01:15:09]} {[%emt 00:18:13]} Bd7 {[%clk
01:20:44]} {[%emt 00:01:58]} 14. Bxd7 {[%clk 01:08:40]} {[%emt 00:06:59]} Qxd7
{[%clk 01:20:55]} {[%emt 00:00:19]} 15. e5 {[%clk 01:07:08]} {[%emt 00:02:02]}
dxe5 {[%clk 01:21:12]} {[%emt 00:00:13]} 16. Nxe5 {[%clk 01:07:33]} {[%emt
00:00:05]} Qd8 {[%clk 01:11:50]} {[%emt 00:09:53]} 17. Qb3 {[%clk 01:07:32]}
{[%emt 00:00:31]} Nb4 {[%clk 01:08:40]} {[%emt 00:03:40]} 18. d6 {[%clk
01:05:35]} {[%emt 00:02:27]} Re6 {[%clk 01:08:46]} {[%emt 00:00:24]} 19. a3
{[%clk 01:00:32]} {[%emt 00:05:33]} Qxd6 {[%clk 01:03:25]} {[%emt 00:05:51]} 20.
axb4 {[%clk 01:00:39]} {[%emt 00:00:23]} Qxd2 {[%clk 01:03:48]} {[%emt
00:00:06]} 21. bxc5 {[%clk 01:01:05]} {[%emt 00:00:05]} Re7 {[%clk 00:58:33]}
{[%emt 00:05:45]} 22. Kh1 {[%clk 00:57:36]} {[%emt 00:03:59]} Qe3 {[%clk
00:56:42]} {[%emt 00:02:21]} 23. Qb4 {[%clk 00:51:19]} {[%emt 00:06:47]} Rc7
{[%clk 00:56:03]} {[%emt 00:01:09]} 24. Ra5 {[%clk 00:50:50]} {[%emt 00:00:59]}
Bf8 {[%clk 00:53:54]} {[%emt 00:02:38]} 25. Na4 {[%clk 00:47:57]} {[%emt
00:03:24]} Ne4 {[%clk 00:13:14]} {[%emt 00:41:10]} 26. Ng4 {[%clk 00:47:24]}
{[%emt 00:01:02]} Qe2 {[%clk 00:09:54]} {[%emt 00:03:51]} 27. Re1 {[%clk
00:43:37]} {[%emt 00:04:17]} Ng3+ {[%clk 00:10:07]} {[%emt 00:00:17]} 28. hxg3
{[%clk 00:44:00]} {[%emt 00:00:07]} Qxg4 {[%clk 00:10:34]} {[%emt 00:00:03]} 29.
Qc3 {[%clk 00:38:10]} {[%emt 00:06:20]} Qh5+ {[%clk 00:10:51]} {[%emt
00:00:13]} 30. Kg1 {[%clk 00:38:38]} {[%emt 00:00:01]} Bg7 {[%clk 00:11:14]}
{[%emt 00:00:08]} 31. Qd2 {[%clk 00:36:37]} {[%emt 00:02:30]} Rcc8 {[%clk
00:09:48]} {[%emt 00:01:56]} 32. c6 {[%clk 00:33:46]} {[%emt 00:03:21]} b5
{[%clk 00:10:17]} {[%emt 00:00:02]} 33. g4 {[%clk 00:32:49]} {[%emt 00:01:27]}
Qh4 {[%clk 00:08:37]} {[%emt 00:02:09]} 34. Nc5 {[%clk 00:31:06]} {[%emt
00:02:13]} Bd4+ {[%clk 00:08:16]} {[%emt 00:00:52]} 35. Qxd4 {[%clk 00:31:08]}
{[%emt 00:00:28]} Qxe1+ {[%clk 00:08:41]} {[%emt 00:00:05]} 36. Kh2 {[%clk
00:31:35]} {[%emt 00:00:03]} Qh4+ {[%clk 00:09:03]} {[%emt 00:00:08]} 37. Kg1
{[%clk 00:32:00]} {[%emt 00:00:05]} Qe1+ {[%clk 00:09:32]} {[%emt 00:00:02]} 38.
Kh2 {[%clk 00:32:24]} {[%emt 00:00:05]} Qxa5 {[%clk 00:09:45]} {[%emt
00:00:18]} 39. Nd7 {[%clk 00:32:47]} {[%emt 00:00:06]} Rxc6 {[%clk 00:10:09]}
{[%emt 00:00:06]} 0-1



[ePGN "0.1;DGT LiveChess/2.2.5"]

[Event "Tournoi norme de MI"]
[Site "PARIS"]
[Date "????.??.??"]
[Round "5.3"]
[White "Willems, Niels"]
[Black "Lazo, Andrei"]
[Result "1-0"]
[TimeControl "90mn+30s/c"]
[WhiteElo "2337"]
[BlackElo "2212"]

1. c4 {[%clk 01:30:56]} {[%emt 00:00:04]} Nf6 {[%clk 01:30:54]} {[%emt
00:00:05]} 2. Nc3 {[%clk 01:31:19]} {[%emt 00:00:09]} c6 {[%clk 01:31:19]}
{[%emt 00:00:04]} 3. Nf3 {[%clk 01:31:38]} {[%emt 00:00:11]} d5 {[%clk
01:31:44]} {[%emt 00:00:06]} 4. e3 {[%clk 01:32:02]} {[%emt 00:00:05]} a6
{[%clk 01:32:00]} {[%emt 00:00:14]} 5. b3 {[%clk 01:32:09]} {[%emt 00:00:23]}
b5 {[%clk 01:31:53]} {[%emt 00:00:37]} 6. Bb2 {[%clk 01:29:44]} {[%emt
00:02:55]} Bg4 {[%clk 01:32:05]} {[%emt 00:00:18]} 7. h3 {[%clk 01:29:29]}
{[%emt 00:00:45]} Bh5 {[%clk 01:31:20]} {[%emt 00:01:14]} 8. g4 {[%clk
01:26:37]} {[%emt 00:03:22]} Bg6 {[%clk 01:31:45]} {[%emt 00:00:05]} 9. Ne5
{[%clk 01:26:20]} {[%emt 00:00:47]} Qc7 {[%clk 01:28:30]} {[%emt 00:03:45]} 10.
Nxg6 {[%clk 01:26:12]} {[%emt 00:00:38]} hxg6 {[%clk 01:28:53]} {[%emt
00:00:07]} 11. Rc1 {[%clk 01:24:47]} {[%emt 00:01:55]} Qb7 {[%clk 01:24:57]}
{[%emt 00:04:26]} 12. cxd5 {[%clk 01:24:14]} {[%emt 00:01:04]} cxd5 {[%clk
01:25:04]} {[%emt 00:00:23]} 13. Bg2 {[%clk 01:24:33]} {[%emt 00:00:11]} e6
{[%clk 01:24:17]} {[%emt 00:01:16]} 14. O-O {[%clk 01:24:22]} {[%emt 00:00:41]}
Nc6 {[%clk 01:23:23]} {[%emt 00:01:25]} 15. e4 {[%clk 01:20:37]} {[%emt
00:04:15]} Nb4 {[%clk 00:53:58]} {[%emt 00:29:54]} 16. exd5 {[%clk 01:14:38]}
{[%emt 00:06:29]} Nfxd5 {[%clk 00:52:14]} {[%emt 00:02:14]} 17. Re1 {[%clk
00:55:36]} {[%emt 00:19:32]} Rd8 {[%clk 00:48:53]} {[%emt 00:03:51]} 18. a3
{[%clk 00:35:25]} {[%emt 00:20:42]} Nxc3 {[%clk 00:43:40]} {[%emt 00:05:42]} 19.
Rxc3 {[%clk 00:35:20]} {[%emt 00:00:34]} Nd5 {[%clk 00:43:32]} {[%emt
00:00:38]} 20. Rd3 {[%clk 00:35:44]} {[%emt 00:00:07]} Be7 {[%clk 00:38:08]}
{[%emt 00:05:53]} 21. Bxg7 {[%clk 00:34:18]} {[%emt 00:01:56]} Rh7 {[%clk
00:38:32]} {[%emt 00:00:07]} 22. Bb2 {[%clk 00:34:06]} {[%emt 00:00:42]} b4
{[%clk 00:35:47]} {[%emt 00:03:16]} 23. a4 {[%clk 00:32:05]} {[%emt 00:02:31]}
Rd6 {[%clk 00:30:49]} {[%emt 00:05:28]} 24. Be5 {[%clk 00:30:56]} {[%emt
00:01:38]} Rd7 {[%clk 00:31:13]} {[%emt 00:00:06]} 25. Qc2 {[%clk 00:24:41]}
{[%emt 00:06:45]} f5 {[%clk 00:28:53]} {[%emt 00:02:51]} 26. Qc4 {[%clk
00:22:58]} {[%emt 00:02:12]} Kf7 {[%clk 00:27:57]} {[%emt 00:01:28]} 27. Bg3
{[%clk 00:21:57]} {[%emt 00:01:30]} Rh8 {[%clk 00:26:53]} {[%emt 00:01:34]} 28.
gxf5 {[%clk 00:20:19]} {[%emt 00:02:08]} gxf5 {[%clk 00:27:21]} {[%emt
00:00:01]} 29. Bxd5 {[%clk 00:19:57]} {[%emt 00:00:52]} Rxd5 {[%clk 00:26:28]}
{[%emt 00:01:23]} 30. Rxd5 {[%clk 00:19:56]} {[%emt 00:00:31]} exd5 {[%clk
00:24:41]} {[%emt 00:02:17]} 31. Qd3 {[%clk 00:18:45]} {[%emt 00:01:38]} Qd7
{[%clk 00:23:49]} {[%emt 00:01:25]} 32. Re5 {[%clk 00:18:17]} {[%emt 00:00:57]}
f4 {[%clk 00:22:19]} {[%emt 00:02:01]} 33. Rf5+ {[%clk 00:12:03]} {[%emt
00:06:44]} Bf6 {[%clk 00:18:32]} {[%emt 00:04:17]} 34. Bxf4 {[%clk 00:12:10]}
{[%emt 00:00:23]} Rg8+ {[%clk 00:16:40]} {[%emt 00:02:22]} 35. Kf1 {[%clk
00:11:41]} {[%emt 00:01:00]} Ke6 {[%clk 00:16:52]} {[%emt 00:00:17]} 36. Rh5
{[%clk 00:12:02]} {[%emt 00:00:09]} Qc6 {[%clk 00:15:59]} {[%emt 00:01:24]} 37.
Qf5+ {[%clk 00:12:31]} {[%emt 00:00:01]} Ke7 {[%clk 00:16:06]} {[%emt
00:00:23]} 38. Rh7+ {[%clk 00:10:03]} {[%emt 00:02:58]} Rg7 {[%clk 00:14:11]}
{[%emt 00:02:25]} 39. Bg5 {[%clk 00:08:44]} {[%emt 00:01:47]} Rxh7 {[%clk
00:14:26]} {[%emt 00:00:16]} 40. Qxh7+ {[%clk 00:09:00]} {[%emt 00:00:14]} Ke6
{[%clk 00:14:49]} {[%emt 00:00:07]} 41. Qg6 {[%clk 00:09:05]} {[%emt 00:00:24]}
1-0